bitfinex/quotes_SOLUSD_20241007
["timestamp","ask_amount","ask_price","bid_price","bid_amount"]
[1728299667482,0.8259427,147.04,147.01,20.0]
[1728299668394,0.8259427,147.04,147.02,1.3599558]
[1728299668685,0.8259427,147.04,147.01,20.0]
[1728299668864,0.8259427,147.04,147.02,1.35996232]
[1728299671398,0.8259427,147.04,147.02,23.34368347]
[1728299671792,0.8259427,147.04,147.03,20.0]
[1728299672475,0.8259427,147.04,147.02,14.9382255]
[1728299673068,0.8259427,147.04,147.03,16.29817523]
[1728299673269,0.8259427,147.04,147.03,1.35994973]
[1728299673470,0.8259427,147.04,147.03,14.9382255]
[1728299674265,0.8259427,147.04,147.03,34.9382255]
[1728299675469,0.1,147.09,147.04,20.25098]
[1728299675791,0.1,147.09,147.08,14.9382255]
[1728299675973,0.1,147.09,147.08,35.1892055]
[1728299676672,0.1,147.09,147.08,35.0637155]
[1728299676885,0.1,147.09,147.08,34.9382255]
[1728299677689,0.1,147.09,147.08,35.1892055]
[1728299678386,0.1,147.09,147.08,23.56053738]
[1728299678593,0.1,147.09,147.08,44.91976557]
[1728299679686,0.1,147.09,147.08,43.30955738]
[1728299679889,0.1,147.09,147.03,7.10439875]
[1728299680075,0.1,147.09,147.05,23.30955738]
[1728299681195,0.1,147.09,147.06,20.0]
[1728299686008,0.1,147.09,147.06,21.35962662]
[1728299686673,0.1,147.09,147.06,20.0]
[1728299687470,0.1,147.09,147.07,1.35962736]
[1728299687671,0.1,147.09,147.07,1.35962504]
[1728299688081,0.1,147.09,147.06,20.0]
[1728299688275,0.1,147.09,147.06,21.35973767]
[1728299689084,0.1,147.09,147.06,1.35973767]
[1728299689286,0.1,147.09,147.06,21.35973767]
[1728299689806,0.1,147.09,147.08,20.25098]
[1728299689985,0.1,147.09,147.08,21.61023136]
[1728299690393,0.1,147.09,147.08,20.25098]
[1728299691200,0.1,147.09,147.08,21.61026449]
[1728299691389,0.1,147.09,147.08,20.25098]
[1728299692381,0.1,147.09,147.08,21.61024648]
[1728299692582,0.1,147.09,147.08,20.25098]
[1728299693077,0.1,147.09,147.08,20.0]
[1728299694092,0.1,147.09,147.08,21.35945657]
[1728299694405,0.1,147.09,147.08,20.0]
[1728299697486,0.1,147.09,147.05,23.30955738]
[1728299697688,0.1,147.09,147.06,20.0]
[1728299698693,0.1,147.09,147.05,23.30955738]
[1728299698895,16.685,147.09,147.05,23.30955738]
[1728299699112,16.685,147.09,147.06,1.35974245]
[1728299699613,16.685,147.09,147.05,23.30955738]
[1728299700210,16.685,147.09,147.06,20.0]
[1728299701203,0.52667047,147.08,147.0,7.10439875]
[1728299701407,0.52667047,147.08,147.0,23.30955738]
[1728299701713,22.9444,147.09,147.02,23.30955738]
[1728299702216,22.9444,147.09,147.04,23.30955738]
[1728299702589,22.9444,147.09,147.02,23.30955738]
[1728299702590,24.30355447,147.08,147.02,23.30955738]
[1728299702912,24.30355447,147.08,147.0,23.30955738]
[1728299703121,24.30355447,147.08,147.01,1.36009681]
[1728299703607,24.30355447,147.08,147.0,23.30955738]
[1728299704482,24.30355447,147.08,146.98,23.30955738]
[1728299704688,23.776884,147.06,146.98,23.30955738]
[1728299704889,15.4545,147.04,146.98,23.30955738]
[1728299705887,6.2088,147.03,146.99,20.0]
[1728299706118,6.2088,147.03,146.94,7.11064059]
[1728299706119,6.73547047,147.03,146.96,23.30955738]
[1728299706409,6.2088,147.03,146.97,20.0]
[1728299706713,6.2088,147.03,146.96,23.30955738]
[1728299706924,0.52667047,147.02,146.96,23.30955738]
[1728299708308,24.30355447,147.02,146.96,23.30955738]
[1728299709314,23.776884,147.0,146.94,23.30955738]
[1728299709612,23.776884,147.0,146.89,16.0202]
[1728299709613,0.52667047,146.99,146.92,23.30955738]
[1728299710819,0.52667047,146.99,146.93,20.0]
[1728299711025,15.5823,147.01,146.96,23.30955738]
[1728299711313,15.5823,147.01,146.98,23.30955738]
[1728299712306,15.5823,147.01,146.99,1.36051491]
[1728299712513,15.5823,147.01,146.98,23.30955738]
[1728299713020,15.5823,147.01,146.96,23.30955738]
[1728299713218,15.5823,147.01,146.97,20.0]
[1728299714096,15.5823,147.01,146.94,23.30955738]
[1728299714097,24.30355447,147.0,146.94,23.30955738]
[1728299714290,24.30355447,147.0,146.95,20.0]
[1728299714700,24.30355447,147.0,146.88,7.95746233]
[1728299714701,24.30355447,147.0,146.92,23.30955738]
[1728299715014,6.1888,146.99,146.92,23.30955738]
[1728299715218,24.30355447,146.98,146.92,23.30955738]
[1728299716118,24.30355447,146.98,146.9,23.30955738]
[1728299716491,24.30355447,146.98,146.91,1.36103311]
[1728299717311,24.30355447,146.98,146.91,21.36103311]
[1728299717700,16.5659,146.97,146.91,20.0]
[1728299718015,24.30355447,146.96,146.91,20.0]
[1728299718403,24.30355447,146.96,146.89,20.0]
[1728299719616,16.413,146.93,146.85,1.18469438]
[1728299719796,0.52667047,146.92,146.85,23.30955738]
[1728299720392,24.30355447,146.92,146.85,23.30955738]
[1728299720812,24.30355447,146.92,146.86,20.0]
[1728299722324,23.776884,146.9,146.86,20.0]
[1728299722500,24.30355447,146.9,146.86,21.36171699]
[1728299723406,24.30355447,146.9,146.79,38.38541169]
[1728299723407,24.30355447,146.9,146.79,15.07585431]
[1728299723622,23.776884,146.88,146.82,23.30955738]
[1728299723821,24.30355447,146.88,146.82,23.30955738]
[1728299724197,23.776884,146.88,146.84,23.30955738]
[1728299724421,23.776884,146.88,146.76,28.58669579]
[1728299724422,24.30355447,146.88,146.76,13.8309349]
[1728299724731,24.30355447,146.88,146.82,23.30955738]
[1728299725422,24.30355447,146.88,146.77,23.776884]
[1728299725623,15.6557,146.89,146.85,23.30955738]
[1728299725802,15.6557,146.89,146.86,1.36168978]
[1728299726703,15.6557,146.89,146.83,23.30955738]
[1728299726924,15.6557,146.89,146.85,20.0]
[1728299727325,15.6557,146.89,146.86,1.36164361]
[1728299727830,15.6557,146.89,146.85,20.0]
[1728299731226,0.52667047,146.88,146.83,20.0]
[1728299731525,24.30355447,146.88,146.83,20.0]
[1728299732428,15.6557,146.89,146.84,24.67140651]
[1728299733302,15.6557,146.89,146.84,23.30955738]
[1728299733506,15.6557,146.89,146.83,20.0]
[1728299733706,24.30355447,146.88,146.83,20.0]
[1728299734227,23.776884,146.88,146.83,20.0]
[1728299735014,24.30355447,146.88,146.83,20.0]
[1728299735631,6.2799,146.87,146.81,20.0]
[1728299735836,6.2799,146.87,146.8,23.30955738]
[1728299735837,24.30355447,146.86,146.8,23.30955738]
[1728299737320,24.30355447,146.86,146.81,20.0]
[1728299737738,6.2799,146.87,146.84,23.30955738]
[1728299738126,6.2799,146.87,146.85,1.36177543]
[1728299738839,6.2799,146.87,146.84,23.30955738]
[1728299739045,6.2799,146.87,146.82,1.48726561]
[1728299739046,0.52667047,146.86,146.82,23.30955738]
[1728299739251,23.776884,146.86,146.83,21.36193677]
[1728299739619,23.776884,146.86,146.83,20.0]
[1728299739816,23.776884,146.86,146.81,20.0]
[1728299740239,0.52667047,146.85,146.81,20.0]
[1728299740442,24.30355447,146.86,146.82,1.36205725]
[1728299741316,6.2799,146.87,146.82,1.36205725]
[1728299741317,6.2799,146.87,146.82,24.67161463]
[1728299743638,6.2799,146.87,146.82,23.30955738]
[1728299743822,6.2799,146.87,146.83,1.36183961]
[1728299744152,15.6557,146.89,146.86,23.30955738]
[1728299744445,15.6557,146.89,146.87,1.36154904]
[1728299747447,24.30355447,146.88,146.83,20.0]
[1728299748826,23.776884,146.86,146.76,15.4223]
[1728299749028,24.30355447,146.86,146.78,23.30955738]
[1728299750129,24.30355447,146.86,146.79,20.25098]
[1728299750434,24.30355447,146.86,146.79,20.0]
[1728299750636,0.52667047,146.85,146.79,20.0]
[1728299751757,6.379,146.87,146.82,23.30955738]
[1728299751938,6.379,146.87,146.83,21.36188247]
[1728299752332,6.379,146.87,146.84,23.30955738]
[1728299752531,15.6557,146.89,146.85,21.36164496]
[1728299753046,15.6557,146.89,146.85,20.0]
[1728299753351,15.6557,146.89,146.85,21.36165774]
[1728299753555,15.6557,146.89,146.85,20.0]
[1728299753738,24.30355447,146.88,146.85,20.0]
[1728299753938,24.30355447,146.88,146.83,21.36183891]
[1728299756833,24.30355447,146.88,146.83,21.36185524]
[1728299757353,15.6557,146.89,146.83,21.36185524]
[1728299757539,15.6557,146.89,146.84,23.30955738]
[1728299757855,15.6557,146.89,146.85,1.3616439]
[1728299759862,15.6557,146.89,146.84,23.30955738]
[1728299761145,0.52667047,146.88,146.84,23.30955738]
[1728299761349,0.52667047,146.88,146.83,20.0]
[1728299761653,16.18237047,146.89,146.83,20.0]
[1728299762465,15.6557,146.89,146.84,1.36177016]
[1728299762644,0.52667047,146.88,146.83,20.0]
[1728299763337,24.30355447,146.88,146.83,20.0]
[1728299765859,15.6557,146.89,146.84,24.67135619]
[1728299766067,16.18237047,146.89,146.84,24.67135619]
[1728299766358,16.18237047,146.89,146.82,23.30955738]
[1728299766938,0.52667047,146.88,146.83,20.0]
[1728299767239,24.30355447,146.88,146.83,20.0]
[1728299767437,31.11185447,146.88,146.81,20.0]
[1728299767662,31.11185447,146.88,146.8,23.30955738]
[1728299768060,24.30355447,146.88,146.8,23.30955738]
[1728299768361,31.11185447,146.88,146.8,23.30955738]
[1728299768541,24.30355447,146.88,146.8,23.30955738]
[1728299768944,24.30355447,146.88,146.81,20.0]
[1728299769439,13.0588,146.87,146.81,20.0]
[1728299769645,31.11275447,146.86,146.78,23.30955738]
[1728299769968,23.776884,146.84,146.78,23.30955738]
[1728299770147,24.30355447,146.84,146.79,1.36219003]
[1728299771450,24.30355447,146.84,146.79,21.36219003]
[1728299772466,15.1071,146.85,146.81,20.0]
[1728299772650,15.1071,146.85,146.82,24.67143858]
[1728299772969,6.25,146.87,146.84,23.30955738]
[1728299773359,6.25,146.87,146.85,1.3617521]
[1728299773676,6.25,146.87,146.84,23.30955738]
[1728299774365,16.2887,146.89,146.87,20.0]
[1728299774664,6.5248,146.91,146.88,24.6710579]
[1728299775366,16.2887,146.93,146.9,23.30955738]
[1728299775550,16.2887,146.93,146.91,1.36116999]
[1728299775953,16.2887,146.93,146.9,23.30955738]
[1728299776146,16.2887,146.93,146.88,23.30955738]
[1728299776344,16.2887,146.93,146.89,21.36129567]
[1728299777168,16.2887,146.93,146.9,23.30955738]
[1728299777343,16.2887,146.93,146.91,1.36117714]
[1728299778158,6.5248,146.95,146.91,1.36117714]
[1728299779266,6.5248,146.95,146.9,23.30955738]
[1728299779474,7.05147047,146.95,146.9,23.30955738]
[1728299779969,6.5248,146.95,146.91,1.36117205]
[1728299780350,6.5248,146.95,146.92,23.30955738]
[1728299780550,6.5248,146.95,146.93,1.36103926]
[1728299780747,6.4069,146.99,146.94,23.30955738]
[1728299780942,6.4069,146.99,146.95,1.36075897]
[1728299781858,6.93357047,146.99,146.95,1.36077705]
[1728299782057,6.4069,146.99,146.95,1.36077705]
[1728299782650,6.93357047,146.99,146.93,20.0]
[1728299784666,23.776884,146.98,146.93,20.0]
[1728299784977,23.776884,146.98,146.92,23.30955738]
[1728299784978,0.52667047,146.97,146.9,23.30955738]
[1728299785471,23.776884,146.95,146.86,23.30955738]
[1728299785672,6.635,146.93,146.8,36.44049385]
[1728299785979,0.52667047,146.92,146.85,23.30955738]
[1728299786367,7.16167047,146.93,146.85,23.30955738]
[1728299786570,7.16167047,146.93,146.85,37.4162736]
[1728299786881,7.16167047,146.93,146.86,20.0]
[1728299787050,23.776884,146.92,146.86,20.0]
[1728299787254,0.52667047,146.91,146.85,37.4162736]
[1728299787675,24.30355447,146.92,146.85,37.4162736]
[1728299788488,24.30355447,146.92,146.86,20.0]
[1728299788785,31.10995447,146.92,146.86,20.0]
[1728299788962,24.30355447,146.92,146.86,20.0]
[1728299789781,31.11005447,146.92,146.86,20.0]
[1728299789964,31.11005447,146.92,146.83,20.25098]
[1728299790160,6.807,146.91,146.83,20.0]
[1728299790366,7.33407047,146.9,146.83,20.0]
[1728299790664,7.33407047,146.9,146.8,20.0]
[1728299790865,7.33407047,146.9,146.79,37.4162736]
[1728299790866,39.551984,146.88,146.79,37.4162736]
[1728299791174,23.776884,146.86,146.79,37.4162736]
[1728299791374,0.52667047,146.85,146.76,45.37373593]
[1728299791555,0.52667047,146.85,146.76,37.4162736]
[1728299791960,0.52667047,146.85,146.76,38.77835275]
[1728299792684,0.52667047,146.85,146.76,37.4162736]
[1728299792870,23.776884,146.84,146.77,1.36228365]
[1728299793183,0.52667047,146.85,146.77,1.36228365]
[1728299793385,24.30355447,146.86,146.79,37.4162736]
[1728299793591,6.3218,146.87,146.8,21.36198237]
[1728299793876,6.3218,146.87,146.83,20.0]
[1728299794084,6.3218,146.87,146.84,1.36170661]
[1728299795366,6.3218,146.87,146.83,20.0]
[1728299796865,6.3218,146.87,146.84,1.36183049]
[1728299797068,6.3218,146.87,146.81,1.36183001]
[1728299797587,6.3218,146.87,146.82,1.61281011]
[1728299797769,15.7751,146.88,146.84,37.4162736]
[1728299800384,15.7751,146.88,146.85,21.36180143]
[1728299800881,15.7751,146.88,146.85,20.0]
[1728299801799,0.52667047,146.87,146.82,20.12549]
[1728299802392,0.52667047,146.87,146.82,20.0]
[1728299802699,24.30355447,146.87,146.81,37.4162736]
[1728299803379,24.30355447,146.87,146.82,1.36198153]
[1728299803888,24.30355447,146.87,146.82,21.36198153]
[1728299805398,6.1124,146.86,146.78,37.4162736]
[1728299805684,6.1124,146.86,146.76,1.18528227]
[1728299805685,24.30355447,146.85,146.76,1.18528227]
[1728299805889,24.30355447,146.85,146.75,37.4162736]
[1728299806066,31.11325447,146.85,146.75,37.4162736]
[1728299806272,16.5978,146.82,146.75,37.4162736]
[1728299806497,17.12447047,146.82,146.75,37.4162736]
[1728299806990,23.776884,146.81,146.75,37.4162736]
[1728299807290,0.52667047,146.8,146.75,37.4162736]
[1728299808490,6.2341,146.79,146.73,23.42829707]
[1728299808684,0.52667047,146.78,146.73,23.42829707]
[1728299809896,0.52667047,146.78,146.74,20.0]
[1728299813796,24.30355447,146.78,146.73,23.42829707]
[1728299814100,15.6963,146.77,146.72,20.0]
[1728299814303,6.2341,146.79,146.75,23.42829707]
[1728299814596,16.5415,146.8,146.77,23.42829707]
[1728299814797,16.5415,146.8,146.79,23.42829707]
[1728299816398,6.0287,146.83,146.79,23.42829707]
[1728299816594,6.0287,146.83,146.8,1.36213352]
[1728299816779,6.0287,146.83,146.81,23.42829707]
[1728299816984,6.0287,146.83,146.79,23.42829707]
[1728299818475,6.55537047,146.83,146.77,23.42829707]
[1728299818706,6.55537047,146.83,146.78,20.0]
[1728299818999,23.776884,146.82,146.75,23.42829707]
[1728299819299,0.52667047,146.81,146.76,20.0]
[1728299820299,23.776884,146.8,146.73,23.42829707]
[1728299820483,6.0287,146.83,146.71,23.42829707]
[1728299820484,23.776884,146.78,146.71,23.42829707]
[1728299820804,23.776884,146.75,146.68,0.8259427]
[1728299821103,0.52667047,146.74,146.68,0.8259427]
[1728299822187,23.776884,146.72,146.68,0.8259427]
[1728299822392,30.416484,146.7,146.68,0.8259427]
[1728299822700,0.52667047,146.69,146.68,0.8259427]
[1728299825179,7.34367047,146.69,146.68,0.8259427]
[1728299825502,23.776884,146.65,146.57,37.53419018]
[1728299825804,0.52667047,146.64,146.57,37.53419018]
[1728299826511,6.3585,146.63,146.57,37.53419018]
[1728299826800,0.52667047,146.62,146.57,37.53419018]
[1728299827194,24.30355447,146.62,146.57,37.53419018]
[1728299827601,6.3585,146.63,146.58,21.36427644]
[1728299828287,22.8898,146.66,146.58,21.36427644]
[1728299828493,22.8898,146.66,146.59,0.25098]
[1728299828702,0.52667047,146.65,146.59,0.25098]
[1728299828882,22.8898,146.66,146.59,1.61490301]
[1728299829083,0.52667047,146.65,146.59,0.25098]
[1728299830103,24.30355447,146.65,146.59,1.36395349]
[1728299830508,22.8898,146.66,146.59,1.36395349]
[1728299830801,22.8898,146.66,146.61,20.0]
[1728299831006,22.8898,146.66,146.61,21.3639225]
[1728299831696,0.52667047,146.71,146.63,37.53419018]
[1728299832001,21.7715,146.7,146.64,20.0]
[1728299832208,0.52667047,146.69,146.64,20.0]
[1728299832396,0.52667047,146.69,146.64,21.36374747]
[1728299833105,0.52667047,146.69,146.64,21.36364398]
[1728299833293,24.30355447,146.69,146.64,20.0]
[1728299833692,0.52667047,146.69,146.65,1.36373899]
[1728299834901,21.7715,146.7,146.64,20.0]
[1728299835206,21.7715,146.7,146.65,0.12549]
[1728299835407,21.7715,146.7,146.64,20.0]
[1728299835408,0.52667047,146.69,146.64,20.0]
[1728299835606,21.7715,146.7,146.65,0.12549]
[1728299835990,21.7715,146.7,146.66,37.53419018]
[1728299836185,0.52667047,146.73,146.67,1.36338089]
[1728299836406,0.52667047,146.73,146.67,21.36338089]
[1728299837008,0.52667047,146.73,146.67,20.0]
[1728299837805,24.30355447,146.73,146.67,20.0]
[1728299838523,24.30355447,146.73,146.67,21.36327592]
[1728299838691,24.30355447,146.73,146.66,20.0]
[1728299839423,31.11905447,146.73,146.65,37.53419018]
[1728299839587,31.11905447,146.73,146.58,43.60729018]
[1728299839588,6.8165,146.71,146.62,37.53419018]
[1728299839807,24.30355447,146.7,146.58,43.60729018]
[1728299840117,23.776884,146.66,146.58,37.53419018]
[1728299840321,0.52667047,146.65,146.58,37.53419018]
[1728299841520,0.52667047,146.65,146.59,1.36413491]
[1728299842331,0.52667047,146.65,146.58,37.53419018]
[1728299842823,0.52667047,146.65,146.59,20.0]
[1728299843201,0.52667047,146.65,146.55,37.53419018]
[1728299844431,0.52667047,146.65,146.56,20.0]
[1728299844600,23.776884,146.64,146.56,20.0]
[1728299844801,0.52667047,146.63,146.56,20.0]
[1728299845932,0.52667047,146.63,146.57,1.36434345]
[1728299846113,0.52667047,146.63,146.58,37.53419018]
[1728299846319,0.52667047,146.63,146.59,21.36413031]
[1728299846829,0.52667047,146.66,146.6,0.12549]
[1728299847038,0.52667047,146.66,146.61,37.53419018]
[1728299847332,0.52667047,146.66,146.62,20.0]
[1728299847513,6.84097047,146.67,146.62,21.36388479]
[1728299847907,6.84097047,146.67,146.62,20.0]
[1728299848110,6.84097047,146.67,146.63,1.36381996]
[1728299848612,6.3143,146.67,146.63,1.36381996]
[1728299848837,6.3143,146.67,146.64,37.53419018]
[1728299849015,16.1178,146.69,146.65,21.36351889]
[1728299849333,16.1178,146.69,146.65,20.86351889]
[1728299849511,16.1178,146.69,146.65,20.0]
[1728299849714,6.1021,146.71,146.67,37.65968018]
[1728299850032,15.5483,146.73,146.7,37.53419018]
[1728299850223,15.5483,146.73,146.71,1.36311455]
[1728299850727,15.5483,146.73,146.7,37.53419018]
[1728299850938,15.5483,146.73,146.71,1.36307104]
[1728299851731,6.6181,146.75,146.71,21.36307104]
[1728299852035,6.6181,146.75,146.71,20.0]
[1728299852533,15.5483,146.77,146.74,20.0]
[1728299852845,6.0957,146.79,146.74,21.36275108]
[1728299853546,6.0957,146.79,146.75,1.48810414]
[1728299853734,15.8682,146.81,146.77,20.0]
[1728299853908,15.8682,146.81,146.78,1.36241921]
[1728299854108,15.8682,146.81,146.77,20.0]
[1728299854305,15.8682,146.81,146.78,1.36241921]
[1728299854511,15.8682,146.81,146.77,20.0]
[1728299855121,15.8682,146.81,146.78,1.36244675]
[1728299855322,6.1824,146.83,146.78,1.36244675]
[1728299855534,1.02667047,146.82,146.78,1.36244675]
[1728299856317,1.02667047,146.82,146.75,0.12549]
[1728299856633,30.588384,146.81,146.73,20.0]
[1728299856815,1.02667047,146.8,146.73,20.0]
[1728299857424,1.02667047,146.8,146.73,0.12549]
[1728299857621,1.02667047,146.8,146.73,1.61365227]
[1728299857829,1.02667047,146.8,146.73,0.25098]
[1728299858428,1.02667047,146.8,146.71,0.12549]
[1728299858429,23.776884,146.79,146.71,0.12549]
[1728299858637,1.02667047,146.78,146.73,20.0]
[1728299858825,6.1824,146.83,146.74,1.36272786]
[1728299859028,6.1824,146.83,146.75,37.53419018]
[1728299859029,1.02667047,146.82,146.75,37.53419018]
[1728299859333,6.1824,146.83,146.75,37.53419018]
[1728299859334,7.20907047,146.83,146.76,21.3624197]
[1728299859541,7.20907047,146.83,146.77,0.12549]
[1728299860239,6.8114,146.82,146.68,7.95746233]
[1728299860420,7.83817047,146.81,146.73,20.0]
[1728299860736,23.776884,146.8,146.73,20.0]
[1728299860925,1.02667047,146.79,146.73,20.0]
[1728299862223,16.392,146.77,146.73,20.0]
[1728299862435,1.02667047,146.76,146.7,20.0]
[1728299863517,1.02667047,146.76,146.71,1.36291742]
[1728299864047,1.02667047,146.76,146.7,20.0]
[1728299864539,17.41867047,146.77,146.73,20.0]
[1728299864926,17.41867047,146.77,146.73,21.3629134]
[1728299865121,16.392,146.77,146.73,21.3629134]
[1728299865523,16.6539,146.82,146.75,37.53419018]
[1728299865740,17.68057047,146.82,146.76,20.0]
[1728299866328,17.68057047,146.82,146.77,1.36246003]
[1728299866525,16.6539,146.82,146.77,1.36246003]
[1728299867241,1.02667047,146.81,146.76,20.0]
[1728299867649,17.68057047,146.82,146.77,1.3624303]
[1728299869852,16.6539,146.82,146.77,1.3624303]
[1728299870926,17.68057047,146.82,146.76,20.0]
[1728299871132,17.68057047,146.82,146.74,0.25098]
[1728299871640,23.776884,146.81,146.74,0.25098]
[1728299871846,1.02667047,146.8,146.74,0.25098]
[1728299872232,1.02667047,146.8,146.74,0.12549]
[1728299873137,1.02667047,146.8,146.73,20.0]
[1728299874337,23.776884,146.79,146.73,20.0]
[1728299874533,1.02667047,146.78,146.73,20.0]
[1728299876237,1.02667047,146.78,146.74,1.36279057]
[1728299877142,1.02667047,146.81,146.74,1.36279057]
[1728299877835,23.776884,146.8,146.74,1.36279057]
[1728299878052,1.02667047,146.79,146.74,1.36279057]
[1728299879462,1.02667047,146.79,146.73,20.0]
[1728299879633,23.776884,146.78,146.69,37.53419018]
[1728299879834,15.753,146.76,146.66,37.53419018]
[1728299880056,1.02667047,146.75,146.66,37.53419018]
[1728299880635,1.02667047,146.75,146.67,1.36309375]
[1728299881459,16.77967047,146.76,146.69,37.53419018]
[1728299881759,16.77967047,146.76,146.72,37.53419018]
[1728299881760,15.753,146.76,146.72,37.53419018]
[1728299882259,15.753,146.76,146.73,1.36277645]
[1728299882446,16.77967047,146.76,146.7,20.0]
[1728299882835,16.77967047,146.76,146.71,1.36303694]
[1728299884065,16.77967047,146.76,146.7,20.0]
[1728299884066,23.776884,146.75,146.67,0.25098]
[1728299884361,1.02667047,146.74,146.65,37.53419018]
[1728299884868,23.776884,146.73,146.65,37.53419018]
[1728299885048,1.02667047,146.72,146.65,37.53419018]
[1728299885246,6.5392,146.71,146.65,37.53419018]
[1728299885545,1.02667047,146.7,146.65,37.53419018]
[1728299886160,1.02667047,146.7,146.62,37.53419018]
[1728299886161,16.1328,146.69,146.62,37.53419018]
[1728299886464,1.02667047,146.68,146.61,1.18543745]
[1728299887270,1.02667047,146.68,146.62,1.3637523]
[1728299887438,17.15947047,146.69,146.64,37.53419018]
[1728299887641,17.15947047,146.69,146.65,1.36358275]
[1728299887868,16.1328,146.69,146.65,20.0]
[1728299888347,16.1328,146.69,146.66,1.36348626]
[1728299889666,6.5392,146.71,146.67,37.53419018]
[1728299889873,6.5392,146.71,146.68,1.36332285]
[1728299890043,1.02667047,146.7,146.64,37.53419018]
[1728299890365,1.02667047,146.7,146.65,20.0]
[1728299890547,1.02667047,146.7,146.66,1.36349229]
[1728299891041,7.56587047,146.71,146.66,1.36349229]
[1728299892075,6.5392,146.71,146.66,1.36349229]
[1728299892844,16.033,146.73,146.68,20.0]
[1728299893045,16.033,146.73,146.69,1.36312555]
[1728299893544,1.02667047,146.72,146.68,20.0]
[1728299893850,16.033,146.73,146.67,0.12549]
[1728299894772,16.033,146.73,146.67,1.48868224]
[1728299895549,16.033,146.73,146.7,20.0]
[1728299895750,6.6334,146.75,146.71,1.36302014]
[1728299897043,6.6334,146.75,146.7,20.0]
[1728299897641,6.6334,146.75,146.71,1.36301265]
[1728299898462,6.6334,146.75,146.7,20.0]
[1728299898772,6.6334,146.75,146.71,1.36299811]
[1728299902370,1.02667047,146.74,146.67,0.25098]
[1728299902570,1.02667047,146.74,146.66,20.0]
[1728299903145,7.66007047,146.75,146.67,1.36319222]
[1728299903347,6.6334,146.75,146.7,20.0]
[1728299903602,6.6334,146.75,146.72,37.53419018]
[1728299903752,15.3355,146.77,146.73,1.3628715]
[1728299903960,15.3355,146.77,146.72,37.53419018]
[1728299904456,1.02667047,146.76,146.72,23.42870319]
[1728299904856,16.36217047,146.77,146.73,1.3629069]
[1728299905065,6.4747,146.79,146.74,23.42870319]
[1728299905363,6.4747,146.79,146.76,23.42870319]
[1728299905561,1.02667047,146.78,146.72,23.42870319]
[1728299905875,1.02667047,146.78,146.73,20.0]
[1728299906248,23.776884,146.77,146.71,0.12549]
[1728299906471,1.02667047,146.76,146.71,20.0]
[1728299907551,15.3789,146.75,146.69,20.0]
[1728299907759,15.3789,146.75,146.7,23.42870319]
[1728299907969,15.3789,146.75,146.71,21.36305427]
[1728299909673,15.3789,146.75,146.71,20.0]
[1728299910165,15.3789,146.75,146.71,21.36305346]
[1728299910377,1.02667047,146.74,146.71,20.0]
[1728299910668,1.02667047,146.74,146.68,23.42870319]
[1728299910873,1.02667047,146.74,146.7,23.42870319]
[1728299911090,16.40557047,146.75,146.71,1.3631164]
[1728299911971,15.3789,146.75,146.7,23.42870319]
[1728299912354,1.02667047,146.74,146.7,23.42870319]
[1728299912672,16.40557047,146.75,146.71,1.36305464]
[1728299912867,15.3789,146.75,146.72,23.42870319]
[1728299913268,15.3789,146.75,146.73,1.3629222]
[1728299913564,15.3789,146.75,146.72,23.42870319]
[1728299917774,1.02667047,146.78,146.74,23.42870319]
[1728299917974,1.02667047,146.78,146.73,20.0]
[1728299918778,7.83967047,146.78,146.72,20.0]
[1728299919279,23.776884,146.77,146.72,20.0]
[1728299919482,1.02667047,146.76,146.71,23.42870319]
[1728299920266,24.80355447,146.77,146.73,23.42870319]
[1728299921255,1.02667047,146.78,146.73,23.42870319]
[1728299922782,21.9964,146.79,146.75,23.42870319]
[1728299922975,21.9964,146.79,146.76,1.36259752]
[1728299923280,21.9964,146.79,146.77,23.42870319]
[1728299926682,15.5217,146.79,146.77,23.42870319]
[1728299926891,23.776884,146.82,146.77,23.42870319]
[1728299927182,23.776884,146.82,146.79,23.42870319]
[1728299927562,23.18067047,146.83,146.79,23.42870319]
[1728299928789,23.18067047,146.83,146.78,20.0]
[1728299929182,23.18067047,146.83,146.75,23.42870319]
[1728299929384,23.776884,146.82,146.76,20.0]